fUSD/lending_fUSD_20240220
["ID","MTS","AMOUNT","RATE_DAILY","PERIOD"]
[314586739,1708434708312,-1308.05,0.00041369,6]
[314586740,1708434708322,-921.2,0.00041369,6]
[314586741,1708434708331,-254.59,0.00041369,6]
[314586742,1708434708340,-808.94,0.00041369,6]
[314586743,1708434708350,-1782.46,0.00041369,6]
[314586744,1708434708359,-832.43,0.00041369,6]
[314586745,1708434708368,-500.0,0.00041369,6]
[314586746,1708434708378,-4708.33,0.00041369,6]
[314586747,1708434708388,-388.3,0.00041369,6]
[314586748,1708434708397,-844.64,0.00041369,6]
[314586749,1708434708407,-224.75,0.00041369,6]
[314586750,1708434708416,-500.0,0.00041369,6]
[314586751,1708434708426,-516.23,0.00041369,6]
[314586752,1708434708435,-570.14,0.00041369,6]
[314586753,1708434708445,-725.87,0.00041369,6]
[314586754,1708434708455,-882.96,0.00041369,6]
[314586755,1708434708464,-580.24,0.00041369,6]
[314586756,1708434708474,-2098.72,0.00041369,6]
[314586757,1708434708486,-1110.32,0.00041369,6]
[314586758,1708434708495,-593.91,0.00041369,6]
[314586759,1708434708505,-796.99,0.00041369,6]
[314586760,1708434708514,-737.54,0.00041369,6]
[314586761,1708434708524,-1934.46,0.00041369,6]
[314586762,1708434708533,-1163.52,0.00041369,6]
[314586763,1708434708543,-681.01,0.00041369,6]
[314586764,1708434708553,-194.0,0.0004137,90]
[314586765,1708434708562,-200.0,0.00041596,7]
[314586766,1708434708571,-2000.0,0.00041596,7]
[314586767,1708434708580,-164.1,0.00041614,2]
[314586768,1708434708589,-177.58,0.00041624,2]
[314586769,1708434708598,-817.94,0.00041643,6]
[314586770,1708434708607,-594.24,0.00041643,6]
[314586771,1708434708617,-5587.51,0.00041643,6]
[314586772,1708434708626,-543.6,0.00041643,6]
[314586773,1708434708635,-913.06,0.00041643,6]
[314586774,1708434708646,-993.85,0.00041643,6]
[314586775,1708434708789,-596.92,0.00041643,6]
[314586776,1708434708800,-378.31,0.00041643,6]
[314586777,1708434708810,-5294.69,0.00041643,6]
[314586778,1708434708820,-1339.34,0.00041643,6]
[314586779,1708434708830,-1308.05,0.00041643,6]
[314586780,1708434708840,-921.2,0.00041643,6]
[314586781,1708434708850,-808.94,0.00041643,6]
[314586782,1708434708860,-1782.46,0.00041643,6]
[314586783,1708434708870,-832.43,0.00041643,6]
[314586784,1708434708880,-500.0,0.00041643,6]
[314586785,1708434708890,-4708.33,0.00041643,6]
[314586786,1708434708900,-844.64,0.00041643,6]
[314586787,1708434708909,-500.0,0.00041643,6]
[314586788,1708434708919,-516.23,0.00041643,6]
[314586789,1708434708928,-570.14,0.00041643,6]
[314586790,1708434708937,-725.87,0.00041643,6]
[314586791,1708434708948,-882.96,0.00041643,6]
[314586792,1708434708960,-580.24,0.00041643,6]
[314586793,1708434708969,-2098.72,0.00041643,6]
[314586794,1708434708978,-1110.32,0.00041643,6]
[314586795,1708434708988,-593.91,0.00041643,6]
[314586796,1708434708997,-796.99,0.00041643,6]
[314586797,1708434709006,-737.54,0.00041643,6]
[314586798,1708434709016,-1934.46,0.00041643,6]
[314586799,1708434709025,-1163.52,0.00041643,6]
[314586800,1708434709035,-681.01,0.00041643,6]
[314586801,1708434709045,-153.55220965,0.00041646,12]
[314586802,1708434709054,-1842.23,0.000417,7]
[314586803,1708434709064,-540.86,0.00041731,2]
[314586804,1708434709073,-203.05,0.0004178,120]
[314586805,1708434709083,-150.5,0.0004179,120]
[314586806,1708434709092,-1000.0,0.0004188,2]
[314586807,1708434709101,-365660.4972,0.0004188,2]
[314586808,1708434709109,-362.0623,0.0004188,2]
[314586809,1708434709118,-500.0,0.0004188,2]
[314586810,1708434709128,-1898.04,0.000419,7]
[314586811,1708434709137,-16110.53,0.00041902,2]
[314586812,1708434709146,-818.13,0.00041917,6]
[314586813,1708434709155,-594.26,0.00041917,6]
[314586814,1708434709165,-5587.5772,0.00041917,6]
[314586815,1708434709174,-543.76,0.00041917,6]
[314586816,1708434709183,-913.08,0.00041917,6]
[314586817,1708434709193,-994.06,0.00041917,6]
[314586818,1708434709208,-5294.88448062,0.00041917,6]
[314586819,1708434709217,-1339.53,0.00041917,6]
[314586820,1708434709227,-1308.25,0.00041917,6]
[314586821,1708434709236,-921.3,0.00041917,6]
[314586822,1708434709246,-809.08,0.00041917,6]
[314586823,1708434709255,-1782.51,0.00041917,6]
[314586824,1708434709264,-832.48,0.00041917,6]
[314586825,1708434709274,-486.15,0.00041917,6]
[314586826,1708434709283,-4708.49436132,0.00041917,6]
[314586827,1708434709292,-844.74,0.00041917,6]
[314586828,1708434709302,-302.622,0.00041917,6]
[314586829,1708434709311,-516.24,0.00041917,6]
[314586830,1708434709321,-570.2,0.00041917,6]
[314586831,1708434709330,-726.01,0.00041917,6]
[314586832,1708434709339,-883.12283998,0.00041917,6]
[314586833,1708434709349,-580.43,0.00041917,6]
[314586834,1708434709358,-2098.79,0.00041917,6]
[314586835,1708434709368,-1110.32739963,0.00041917,6]
[314586836,1708434709377,-593.91,0.00041917,6]
[314586837,1708434709386,-797.01,0.00041917,6]
[314586838,1708434709398,-737.64,0.00041917,6]
[314586839,1708434709407,-1934.46,0.00041917,6]
[314586840,1708434709416,-1163.54,0.00041917,6]
[314586841,1708434709426,-681.17,0.00041917,6]
[314586842,1708434709435,-500.0,0.00041979,6]
[314586843,1708434709444,-60000.0,0.00042,90]
[314586844,1708434709454,-150.1,0.00042,2]
[314586845,1708434709463,-200.0,0.00042,2]
[314586846,1708434709472,-352.94,0.00042172,2]
[314586847,1708434709484,-152.29,0.00042192,2]
[314586848,1708434709493,-650.30978605,0.00042219,10]
[314586849,1708434709502,-3000.0,0.0004235,13]
[314586850,1708434709512,-443.665,0.00042433,2]
[314586851,1708434709522,-2931.0,0.00042433,2]
[314586852,1708434709531,-4103.0,0.00042433,2]
[314586853,1708434709541,-19859.0,0.00042433,2]
[314586854,1708434709550,-827.084,0.00042433,2]
[314586855,1708434709560,-150.0,0.00042433,2]
[314586856,1708434709570,-153.55220965,0.00042471,16]
[314586857,1708434709580,-10000.0,0.0004249,3]
[314586858,1708434709589,-151.0,0.0004249,14]
[314586859,1708434709598,-264.03867791,0.00042551,7]
[314586860,1708434709608,-225.68797521,0.00042551,7]
[314586861,1708434709617,-225.15716704,0.00042551,7]
[314586862,1708434709626,-287.82711248,0.00042551,7]
[314586863,1708434709635,-172.1066453,0.00042551,7]
[314586864,1708434709644,-154.22,0.00042622,2]
[314586865,1708434709654,-2000.0,0.000427,2]
[314586866,1708434709663,-5544.10850131,0.000429,4]
[314586867,1708434709673,-208.0,0.00042996,25]
[314586868,1708434709682,-158.16210208,0.00043,120]
[314586869,1708434709691,-194.0,0.00043151,90]
[314586870,1708434709700,-813.68,0.0004325,2]
[314586871,1708434709709,-153.55220965,0.00043296,19]
[314586872,1708434709718,-152.0,0.00043327,3]
[314586873,1708434709727,-2510.48887448,0.000438,120]
[314586874,1708434709736,-257.60700409,0.000438,2]
[314586875,1708434709745,-2000.0,0.000438,2]
[314586876,1708434709755,-1991.0,0.000438,2]
[314586877,1708434709764,-250.67307284,0.000438,2]
[314586878,1708434709773,-195.0,0.00043818,2]
[314586879,1708434709782,-1000.0,0.00043835,70]
[314586880,1708434709791,-800.0,0.00043835,2]
[314586881,1708434709801,-970.97,0.00043836,15]
[314586882,1708434709810,-216.0,0.00043836,2]
[314586883,1708434709820,-171.278,0.00043836,2]
[314586884,1708434709830,-454.0,0.00043836,2]
[314586885,1708434709838,-200.0,0.000439,2]
[314586886,1708434709847,-200.0,0.000439,2]
[314586887,1708434709856,-200.0,0.000439,2]
[314586888,1708434709865,-253.0,0.000439,2]
[314586889,1708434709874,-650.30978605,0.00043949,11]
[314586890,1708434709883,-540.86,0.00043995,2]
[314586891,1708434709892,-200.0,0.00044,20]
[314586892,1708434709900,-300.0,0.00044,60]
[314586893,1708434709909,-200.0,0.00044,2]
[314586894,1708434709919,-200.0,0.000441,2]
[314586895,1708434709928,-152.29,0.0004411,2]
[314586896,1708434709936,-153.55220965,0.00044122,22]
[314586897,1708434709945,-1793.17721,0.0004444,2]
[314586898,1708434709955,-200.0,0.000445,20]
[314586899,1708434709964,-389.62523395,0.00044506,4]
[314586900,1708434709973,-12099.58540376,0.00044509,10]
[314586901,1708434709983,-800.0,0.00044657,2]
[314586902,1708434709996,-208.0,0.00044697,29]
[314586903,1708434710005,-1843.84193528,0.0004483,5]
[314586904,1708434710016,-3000.0,0.0004485,25]
[314586905,1708434710025,-210.0,0.000449,19]
[314586906,1708434710035,-153.55220965,0.00044947,25]
[314586907,1708434710045,-100000.0,0.00045,35]
[314586908,1708434710055,-200.0,0.00045,21]
[314586909,1708434710065,-1737.00171,0.00045,17]
[314586910,1708434710074,-800.0,0.00045017,20]
[314586911,1708434710084,-200.0,0.00045017,30]
[314586912,1708434710094,-200.0,0.00045017,30]
[314586913,1708434710103,-199.0,0.00045308,90]
[314586914,1708434710112,-3935.96,0.00045433,2]
[314586915,1708434710122,-150.0,0.00045433,2]
[314586916,1708434710132,-608.04891047,0.00045479,2]
[314586917,1708434710142,-2000.0,0.000455,2]
[314586918,1708434710151,-200.0,0.000455,22]
[314586919,1708434710162,-650.30978605,0.00045678,12]
[314586920,1708434710171,-153.55220965,0.00045773,28]
[314586921,1708434710180,-150.0,0.00045862,30]
[314586922,1708434710189,-150.0,0.00045862,30]
[314586923,1708434710198,-168.4641193,0.00045862,30]
[314586924,1708434710209,-161.14542836,0.00045862,30]
[314586925,1708434710218,-150.0,0.00045862,30]
[314586926,1708434710228,-150.0,0.00045862,30]
[314586927,1708434710237,-150.0,0.00045862,30]
[314586928,1708434710246,-240.5706122,0.00045862,30]
[314586929,1708434710256,-150.0,0.00045862,30]
[314586930,1708434710265,-200.0,0.000459,20]
[314586931,1708434710275,-100000.0,0.00046,36]
[314586932,1708434710284,-6764.6914102,0.00046,30]
[314586933,1708434710293,-200.0,0.00046,22]
[314586934,1708434710302,-150.0,0.00046021,30]
[314586935,1708434710313,-152.29,0.00046027,2]
[314586936,1708434710323,-2000.0,0.00046054,2]
[314586937,1708434710332,-813.68,0.0004613,2]
[314586938,1708434710341,-1125.92,0.0004614,120]
[314586939,1708434710350,-150.0,0.00046181,30]
[314586940,1708434710360,-150.0,0.00046196,2]
[314586941,1708434710369,-200.39217313,0.000462,2]
[314586942,1708434710378,-540.86,0.00046259,2]
[314586943,1708434710391,-150.0,0.0004634,30]
[314586944,1708434710400,-150.0,0.00046371,2]
[314586945,1708434710410,-208.0,0.00046397,32]
[314586946,1708434710422,-1500.0,0.00046399,2]
[314586947,1708434710431,-150.0,0.00046403,2]
[314586948,1708434710441,-150.0,0.00046407,2]
[314586949,1708434710450,-150.0,0.00046438,2]
[314586950,1708434710460,-150.0,0.00046446,2]
[314586951,1708434710471,-150.0,0.00046451,2]
[314586952,1708434710483,-150.0,0.00046478,2]
[314586953,1708434710492,-150.0,0.00046499,30]
[314586954,1708434710502,-150.0,0.00046514,6]
[314586955,1708434710511,-150.0,0.00046515,2]
[314586956,1708434710521,-150.0,0.00046521,2]
[314586957,1708434710531,-150.0,0.0004655,2]
[314586958,1708434710540,-150.0,0.00046575,2]
[314586959,1708434710550,-1000.0,0.00046575,80]
[314586960,1708434710561,-1000.0,0.00046575,30]
[314586961,1708434710571,-527.42432121,0.00046575,60]
[314586962,1708434710580,-150.0,0.0004658,7]
[314586963,1708434710589,-150.0,0.0004658,7]
[314586964,1708434710599,-150.0,0.0004659,30]
[314586965,1708434710608,-5039.0211035,0.00046594,24]
[314586966,1708434710618,-153.55220965,0.00046598,31]
[314586967,1708434710627,-151.0,0.00046601,2]
[314586968,1708434710637,-250.49088,0.00046601,2]
[314586969,1708434710647,-150.0,0.00046648,7]
[314586970,1708434710656,-150.0,0.00046658,30]
[314586971,1708434710665,-152.95291817,0.0004666,7]
[314586972,1708434710675,-150.0,0.0004666,7]
[314586973,1708434710684,-150.0,0.00046679,7]
[314586974,1708434710693,-150.0,0.00046682,7]
[314586975,1708434710702,-150.0,0.00046696,7]
[314586976,1708434710711,-2137.0,0.000467,115]
[314586977,1708434710721,-2350.99210674,0.000467,117]
[314586978,1708434710731,-150.0,0.00046702,7]
[314586979,1708434710741,-150.0,0.00046715,7]
[314586980,1708434710751,-150.0,0.00046749,7]
[314586981,1708434710761,-150.0,0.00046756,7]
[314586982,1708434710771,-150.0,0.00046757,7]
[314586983,1708434710781,-150.0,0.0004679,7]
[314586984,1708434710791,-150.0,0.00046794,7]
[314586985,1708434710800,-300.0,0.00046796,7]
[314586986,1708434710810,-2000.0,0.000468,2]
[314586987,1708434710819,-150.0,0.00046802,7]
[314586988,1708434710830,-150.0,0.00046807,7]
[314586989,1708434710840,-150.0,0.00046818,30]
[314586990,1708434710850,-300.0,0.00046828,7]
[314586991,1708434710860,-150.0,0.00046836,7]
[314586992,1708434710870,-150.0,0.00046836,7]
[314586993,1708434710880,-150.0,0.00046843,7]
[314586994,1708434710890,-1000.0,0.00046849,33]
[314586995,1708434710899,-150.0,0.00046867,7]
[314586996,1708434710908,-150.0,0.0004689,7]
[314586997,1708434710917,-200.0,0.000469,22]
[314586998,1708434710927,-150.0,0.00046911,7]
[314586999,1708434710936,-150.0,0.0004692,7]
[314587000,1708434710945,-150.0,0.00046922,7]
[314587001,1708434710955,-6890.00165564,0.00046923,2]
[314587002,1708434711104,-150.0,0.00046924,7]
[314587003,1708434711114,-150.0,0.0004694,7]
[314587004,1708434711123,-150.0,0.00046977,30]
[314587005,1708434711132,-150.0,0.00046977,7]
[314587006,1708434711141,-150.0,0.00046978,7]
[314587007,1708434711151,-150.0,0.00046991,7]
[314587008,1708434711160,-200000.0,0.00046997,14]
[314587009,1708434711169,-100000.0,0.00047,37]
[314587010,1708434711179,-620.69492006,0.00047,2]
[314587011,1708434711188,-1842.23,0.00047,7]
[314587012,1708434711198,-300.0,0.00047,47]
[314587013,1708434711208,-150.0,0.00047026,7]
[314587014,1708434711217,-150.0,0.00047028,7]
[314587015,1708434711227,-1026.22148294,0.0004704,10]
[314587016,1708434711236,-1075.87143693,0.0004704,10]
[314587017,1708434711246,-150.0,0.00047052,7]
[314587018,1708434711255,-1500.0,0.00047059,7]
[314587019,1708434711265,-150.0,0.00047081,7]
[314587020,1708434711274,-150.0,0.00047087,7]
[314587021,1708434711284,-150.0,0.00047088,7]
[314587022,1708434711293,-1000.0,0.00047123,36]
[314587023,1708434711303,-150.0,0.00047136,30]
[314587024,1708434711313,-150.0,0.00047147,7]
[314587025,1708434711322,-182.14432098,0.00047174,7]
[314587026,1708434711332,-1898.04,0.000472,7]
[314587027,1708434711341,-150.0,0.000472,7]
[314587028,1708434711351,-150.0,0.00047201,7]
[314587029,1708434711360,-1500.0,0.00047204,7]
[314587030,1708434711370,-150.0,0.00047213,7]
[314587031,1708434711379,-150.0,0.00047217,7]
[314587032,1708434711389,-300.0,0.00047235,7]
[314587033,1708434711399,-150.0,0.00047251,7]
[314587034,1708434711408,-300.0,0.0004726,2]
[314587035,1708434711418,-150.0,0.00047266,7]
[314587036,1708434711427,-300.0,0.00047272,7]
[314587037,1708434711437,-150.0,0.00047273,7]
[314587038,1708434711447,-150.0,0.00047289,7]
[314587039,1708434711458,-150.0,0.00047295,30]
[314587040,1708434711468,-150.0,0.00047296,7]
[314587041,1708434711478,-1500.0,0.00047297,7]
[314587042,1708434711491,-150.0,0.00047301,7]
[314587043,1708434711500,-150.0,0.00047318,30]
[314587044,1708434711510,-150.0,0.00047323,7]
[314587045,1708434711520,-500.0,0.00047346,6]
[314587046,1708434711530,-3000.0,0.0004735,37]
[314587047,1708434711539,-3351.7,0.00047355,120]
[314587048,1708434711549,-150.0,0.00047364,7]
[314587049,1708434711559,-150.0,0.00047367,7]
[314587050,1708434711569,-150.0,0.0004737,7]
[314587051,1708434711579,-302.0,0.00047384,4]
[314587052,1708434711589,-209.0,0.00047385,28]
[314587053,1708434711598,-150.0,0.00047393,7]
[314587054,1708434711608,-179.07391073,0.00047394,7]
[314587055,1708434711618,-1136.26246466,0.00047394,7]
[314587056,1708434711628,-150.0,0.00047395,7]
[314587057,1708434711637,-1000.0,0.00047397,39]
[314587058,1708434711647,-650.30978605,0.00047408,13]
[314587059,1708434711657,-173.08961869,0.00047419,120]
[314587060,1708434711667,-153.55220965,0.00047424,34]
[314587061,1708434711677,-150.0,0.0004743,7]
[314587062,1708434711687,-150.0,0.00047431,7]
[314587063,1708434711696,-150.0,0.00047448,7]
[314587064,1708434711706,-150.0,0.00047455,30]
[314587065,1708434711715,-150.0,0.00047469,7]
[314587066,1708434711725,-150.0,0.00047472,7]
[314587067,1708434711734,-500.0,0.00047486,6]
[314587068,1708434711743,-150.0,0.00047487,7]
[314587069,1708434711752,-250.0,0.00047496,2]
[314587070,1708434711762,-500.0,0.00047496,4]
[314587071,1708434711771,-750.0,0.00047496,6]
[314587072,1708434711781,-627.19593507,0.00047496,8]
[314587073,1708434711790,-500.0,0.00047496,6]
[314587074,1708434711799,-500.0,0.00047496,6]
[314587075,1708434711809,-500.0,0.00047496,6]
[314587076,1708434711818,-666.0,0.00047496,2]
[314587077,1708434711828,-3000.0,0.00047499,120]
[314587078,1708434711837,-300.0,0.00047506,2]
[314587079,1708434711846,-300.0,0.00047506,2]
[314587080,1708434711856,-300.0,0.00047506,2]
[314587081,1708434711865,-300.0,0.00047506,2]
[314587082,1708434711874,-300.0,0.00047506,2]
[314587083,1708434711883,-300.0,0.00047506,2]
[314587084,1708434711892,-300.0,0.00047506,2]
[314587085,1708434711902,-308.8023185,0.00047507,6]
[314587086,1708434711911,-150.0,0.00047507,7]
[314587087,1708434711920,-300.0,0.00047507,2]
[314587088,1708434711930,-151.0,0.00047508,14]
[314587089,1708434711939,-150.0,0.00047508,7]
[314587090,1708434711949,-443544.794141,0.00047508,30]
[314587091,1708434711961,-1500.0,0.00047516,7]
[314587092,1708434711970,-1000.0,0.00047517,30]
[314587093,1708434711979,-1500.0,0.00047523,7]
[314587094,1708434711988,-150.0,0.00047524,7]
[314587095,1708434711996,-150.0,0.00047531,7]
[314587096,1708434712005,-300.0,0.00047543,7]
[314587097,1708434712014,-150.0,0.00047554,7]
[314587098,1708434712023,-1500.0,0.00047559,7]
[314587099,1708434712032,-150.0,0.00047561,30]
[314587100,1708434712042,-150.0,0.00047561,30]
[314587101,1708434712054,-10000.0,0.00047563,4]
[314587102,1708434712064,-150.0,0.00047563,7]
[314587103,1708434712075,-970.97,0.00047572,15]
[314587104,1708434712085,-150.0,0.00047573,7]
[314587105,1708434712095,-1500.0,0.00047576,7]
[314587106,1708434712108,-300.0,0.00047578,7]
[314587107,1708434712130,-1500.0,0.0004758,7]
[314587108,1708434712146,-150.0,0.00047582,7]
[314587109,1708434712166,-150.0,0.00047607,7]
[314587110,1708434712184,-150.0,0.00047612,7]
[314587111,1708434712200,-150.0,0.00047614,30]
[314587112,1708434712222,-150.0,0.00047627,7]
[314587113,1708434712238,-150.0,0.00047632,7]
[314587114,1708434712257,-186.83697916,0.0004764,7]
[314587115,1708434712276,-8218.88,0.0004765,120]
[314587116,1708434712293,-150.0,0.00047654,7]
[314587117,1708434712313,-150.0,0.00047659,7]
[314587118,1708434712330,-150.0,0.00047663,7]
[314587119,1708434712345,-500.0,0.00047671,2]
[314587120,1708434712362,-1000.0,0.00047671,42]
[314587121,1708434712377,-300.0,0.00047699,7]
[314587122,1708434712395,-150.0,0.00047704,7]
[314587123,1708434712409,-1500.0,0.0004772,7]
[314587124,1708434712424,-150.0,0.00047723,7]
[314587125,1708434712440,-150.0,0.00047729,7]
[314587126,1708434712455,-388.29820233,0.00047754,7]
[314587127,1708434712470,-1000.0,0.00047757,2]
[314587128,1708434712486,-1000.0,0.00047757,2]
[314587129,1708434712501,-1000.0,0.00047757,2]
[314587130,1708434712516,-1000.0,0.00047757,2]
[314587131,1708434712532,-1000.0,0.00047757,2]
[314587132,1708434712546,-1000.0,0.00047757,2]
[314587133,1708434712560,-1000.0,0.00047757,2]
[314587134,1708434712576,-1000.0,0.00047757,2]
[314587135,1708434712590,-1000.0,0.00047757,2]
[314587136,1708434712605,-1000.0,0.00047757,2]
[314587137,1708434712619,-1000.0,0.00047757,2]
[314587138,1708434712634,-1000.0,0.00047757,2]
[314587139,1708434712648,-1000.0,0.00047757,2]
[314587140,1708434712663,-1000.0,0.00047757,2]
[314587141,1708434712678,-1000.0,0.00047757,2]
[314587142,1708434712692,-1000.0,0.00047757,2]
[314587143,1708434712709,-1000.0,0.00047757,2]
[314587144,1708434712722,-1000.0,0.00047757,2]
[314587145,1708434712736,-1000.0,0.00047757,2]
[314587146,1708434712750,-1000.0,0.00047757,2]
[314587147,1708434712763,-1000.0,0.00047757,2]
[314587148,1708434712777,-869.0007,0.00047757,2]
[314587149,1708434712791,-2007.2085,0.0004776,5]
[314587150,1708434712806,-150.0,0.00047762,7]
[314587151,1708434712819,-150.0,0.00047771,7]
[314587152,1708434712834,-1500.0,0.00047772,7]
[314587153,1708434712848,-150.0,0.00047773,30]
[314587154,1708434712863,-300.0,0.00047775,7]
[314587155,1708434712878,-150.0,0.00047781,7]
[314587156,1708434712893,-150.0,0.00047786,7]
[314587157,1708434712907,-150.0,0.00047788,7]
[314587158,1708434712922,-150.0,0.00047789,7]
[314587159,1708434712937,-322.07407,0.000478,2]
[314587160,1708434712952,-39946.815732,0.000478,2]
[314587161,1708434712967,-150.0,0.00047801,7]
[314587162,1708434712981,-150.0,0.00047807,7]
[314587163,1708434712996,-350.28649824,0.00047809,7]
[314587164,1708434713011,-150.0,0.00047814,7]
[314587165,1708434713024,-150.0,0.00047821,7]
[314587166,1708434713040,-1500.0,0.00047834,7]
[314587167,1708434713055,-300.0,0.00047853,7]
[314587168,1708434713069,-150.0,0.00047855,7]
[314587169,1708434713083,-150.0,0.00047866,7]
[314587170,1708434713097,-300.0,0.00047867,7]
[314587171,1708434713111,-300.0,0.00047876,7]
[314587172,1708434713127,-1500.0,0.00047877,7]
[314587173,1708434713140,-150.0,0.0004788,7]
[314587174,1708434713154,-11294.455863,0.0004788,30]
[314587175,1708434713169,-158709.055587,0.0004788,30]
[314587176,1708434713183,-150.0,0.00047882,7]
[314587177,1708434713198,-150.0,0.00047894,7]
[314587178,1708434713213,-994.8223,0.00047899,2]
[314587179,1708434713228,-200.0,0.000479,23]
[314587180,1708434713243,-367.9823172,0.000479,8]
[314587181,1708434713257,-150.0,0.00047913,7]
[314587182,1708434713271,-1500.0,0.00047917,7]
[314587183,1708434713286,-150.0,0.00047932,30]
[314587184,1708434713300,-150.0,0.00047937,7]
[314587185,1708434713314,-150.0,0.00047938,7]
[314587186,1708434713329,-150.0,0.0004794,7]
[314587187,1708434713343,-150.0,0.00047944,7]
[314587188,1708434713359,-450.0,0.00047945,7]
[314587189,1708434713373,-150.0,0.00047945,7]
[314587190,1708434713387,-1000.0,0.00047945,45]
[314587191,1708434713402,-152.29,0.00047945,2]
[314587192,1708434713416,-1500.0,0.00047947,7]
[314587193,1708434713430,-150.0,0.00047954,7]
[314587194,1708434713445,-150.0,0.00047963,7]
[314587195,1708434713461,-150.0,0.00047965,7]
[314587196,1708434713478,-150.0,0.00047966,7]
[314587197,1708434713492,-40691.0952232,0.00047967,2]
[314587198,1708434713507,-48828.8910855,0.00047967,2]
[314587199,1708434713522,-56966.6869478,0.00047967,2]
[314587200,1708434713536,-65104.4828101,0.00047967,2]
[314587201,1708434713551,-73242.2786725,0.00047967,2]
[314587202,1708434713567,-8489.7846001,0.00047967,2]
[314587203,1708434713582,-10127.3191233,0.00047967,2]
[314587204,1708434713597,-11764.8536465,0.00047967,2]
[314587205,1708434713611,-13402.3881697,0.00047967,2]
[314587206,1708434713626,-15039.9226929,0.00047967,2]
[314587207,1708434713640,-1530.0823202,0.00047967,2]
[314587208,1708434713654,-1825.2090802,0.00047967,2]
[314587209,1708434713667,-2120.3358403,0.00047967,2]
[314587210,1708434713685,-2415.4626003,0.00047967,2]
[314587211,1708434713700,-2710.5893604,0.00047967,2]
[314587212,1708434713930,-1713.4776749,0.00047967,2]
[314587213,1708434713941,-2043.9782682,0.00047967,2]
[314587214,1708434713951,-2374.4788616,0.00047967,2]
[314587215,1708434713962,-2704.9794549,0.00047967,2]
[314587216,1708434713973,-3035.4800482,0.00047967,2]
[314587217,1708434713983,-1234.5516677,0.00047967,2]
[314587218,1708434713994,-1468.7498363,0.00047967,2]
[314587219,1708434714004,-1702.9480049,0.00047967,2]
[314587220,1708434714014,-1937.1461735,0.00047967,2]
[314587221,1708434714025,-2171.3443421,0.00047967,2]
[314587222,1708434714035,-405.1637927,0.00047967,2]
[314587223,1708434714045,-480.7456941,0.00047967,2]
[314587224,1708434714055,-556.3275954,0.00047967,2]
[314587225,1708434714065,-631.9094968,0.00047967,2]
[314587226,1708434714075,-707.4913981,0.00047967,2]
[314587227,1708434714085,-28699.04812139,0.00047967,2]
[314587228,1708434714094,-300.0,0.0004797,3]
[314587229,1708434714104,-150.0,0.00047972,7]
[314587230,1708434714114,-150.0,0.00047979,7]
[314587231,1708434714124,-150.0,0.00047983,7]
[314587232,1708434714133,-200.0,0.00047987,57]
[314587233,1708434714143,-1610.52547451,0.00047989,120]
[314587234,1708434714152,-150.0,0.00047989,7]
[314587235,1708434714161,-329.5818914,0.00047993,2]
[314587236,1708434714171,-150.0,0.00047994,7]
[314587237,1708434714180,-32553.2993608,0.00047994,2]
[314587238,1708434714190,-6852.2500769,0.00047994,2]